bitfinex/quotes_SOLUSD_20250630
["timestamp","ask_amount","ask_price","bid_price","bid_amount"]
[1751298071625,6.36010939,157.23,157.14,17.16494181]
[1751298071829,17.16494181,157.2,157.11,26.63649672]
[1751298072121,22.25563495,157.27,157.11,33.00144182]
[1751298072322,6.35849176,157.27,157.2,17.16494181]
[1751298072524,6.35849176,157.27,157.16,0.63629422]
[1751298073031,41.56,157.37,157.21,17.16494181]
[1751298073204,17.16494181,157.28,157.21,17.16494181]
[1751298073535,17.16494181,157.26,157.2,17.16494181]
[1751298073698,41.56,157.37,157.16,19.28594308]
[1751298073699,22.25047679,157.3,157.16,0.63629422]
[1751298073905,6.35889609,157.26,157.2,17.16494181]
[1751298074106,23.52305178,157.28,157.22,17.16494181]
[1751298074532,17.16494181,157.26,157.14,0.6363752]
[1751298074827,17.16494181,157.28,157.22,17.16494181]
[1751298075203,17.16494181,157.28,157.19,26.0]
[1751298075429,17.16494181,157.28,157.22,17.16494181]
[1751298075606,15.88713777,157.36,157.19,0.28432314]
[1751298075824,17.16494181,157.26,157.16,6.36261889]
[1751298076024,17.16494181,157.24,157.15,18.64964886]
[1751298076208,17.16494181,157.22,157.16,17.16494181]
[1751298076409,17.16494181,157.23,157.17,17.16494181]
[1751298076610,17.16494181,157.28,157.18,0.63621325]
[1751298076917,6.35445129,157.37,157.27,17.16494181]
[1751298077120,17.16494181,157.3,157.18,26.0]
[1751298077312,17.16494181,157.26,157.16,0.63629422]
[1751298077644,6.36051392,157.22,157.17,17.16494181]
[1751298077807,17.16494181,157.27,157.21,17.16494181]
[1751298078111,17.16494181,157.23,157.17,17.16494181]
[1751298078434,17.16494181,157.23,157.09,15.91405831]
[1751298078745,28.64,157.27,157.18,17.16494181]
[1751298078920,28.64,157.27,157.14,18.64964886]
[1751298078921,17.16494181,157.25,157.19,17.16494181]
[1751298079263,17.16494181,157.23,157.15,0.63633471]
[1751298079638,6.36253737,157.17,157.1,0.63653723]
[1751298079828,6.36253737,157.17,157.0,115.64716296]
[1751298079829,17.16494181,157.15,157.08,17.16494181]
[1751298080226,17.16494181,157.15,157.01,7.0058728]
[1751298080456,17.16494181,157.14,157.08,17.16494181]
[1751298080659,17.16494181,157.12,157.06,17.16494181]
[1751298080872,17.16494181,157.11,157.0,0.63694267]
[1751298081155,54.0815677,157.17,157.08,17.16494181]
[1751298081156,17.16494181,157.14,157.08,17.16494181]
[1751298081561,39.43382262,157.17,157.1,17.16494181]
[1751298081728,22.26888081,157.17,157.11,17.16494181]
[1751298081933,22.26888081,157.17,157.05,0.63673989]
[1751298082129,17.16494181,157.13,157.0,18.64964886]
[1751298082339,17.16494181,157.13,157.07,17.16494181]
[1751298082544,17.16494181,157.13,157.01,0.6369021]
[1751298082761,31.79688852,157.25,157.12,17.16494181]
[1751298083002,17.16494181,157.26,157.13,0.6364157]
[1751298083257,17.16494181,157.23,157.16,17.16494181]
[1751298083556,22.25047679,157.3,157.08,0.63661828]
[1751298083557,17.16494181,157.17,157.08,0.63661828]
[1751298083758,17.16494181,157.09,156.99,6.56974412]
[1751298083940,17.16494181,157.09,157.02,17.16494181]
[1751298084140,22.27171492,157.15,157.06,17.16494181]
[1751298084357,17.16494181,157.08,157.02,17.16494181]
[1751298084730,26.0,157.12,156.99,0.2]
[1751298085070,17.16494181,157.01,156.99,0.2]
[1751298085362,17.16494181,157.0,156.99,0.2]
[1751298085576,17.16494181,157.01,156.99,0.2]
[1751298085868,18.64964886,157.1,156.99,0.2]
[1751298085869,17.16494181,157.02,156.99,0.2]
[1751298086037,17.16494181,157.0,156.99,0.2]
[1751298086238,17.16494181,157.01,156.99,0.2]
[1751298086470,17.16494181,157.02,156.99,0.2]
[1751298086777,17.16494181,157.03,156.99,0.2]
[1751298087142,28.66,157.04,156.99,0.2]
[1751298087342,17.16494181,157.02,156.99,0.2]
[1751298087860,28.66,157.04,157.0,17.16494181]
[1751298088169,17.16494181,157.03,156.99,0.2]
[1751298088469,35.0278914,157.04,156.99,0.2]
[1751298088648,28.66,157.04,156.99,0.2]
[1751298088850,52.19289115,157.04,156.99,0.2]
[1751298089272,35.02794934,157.04,157.0,17.16494181]
[1751298089571,35.02794934,157.04,156.99,17.36494181]
[1751298089751,35.02781871,157.04,156.99,0.2]
[1751298089958,17.16494181,157.03,156.99,0.2]
[1751298090639,50.94732966,157.04,156.99,0.2]
[1751298091044,17.16494181,157.02,156.99,0.2]
[1751298091264,17.16494181,157.01,156.99,0.2]
[1751298091466,17.16494181,157.0,156.99,0.2]
[1751298091672,17.16494181,157.01,156.99,0.2]
[1751298091859,6.36942675,157.0,156.99,0.2]
[1751298092056,17.16494181,157.02,156.99,0.2]
[1751298092261,17.16494181,157.01,156.99,0.2]
[1751298092569,17.16494181,157.02,156.99,0.2]
[1751298093069,17.16494181,157.01,156.99,0.2]
[1751298093250,22.28873463,157.03,156.99,0.2]
[1751298093251,17.16494181,157.0,156.99,0.2]
[1751298093858,7.78270443,157.26,156.99,79.8229059]
[1751298094066,12.83866377,157.27,157.11,18.64964886]
[1751298094279,12.83866377,157.26,157.15,18.64964886]
[1751298094492,12.83866377,157.26,157.12,0.63645621]
[1751298094493,13.2158,157.3,157.19,12.83866377]
[1751298094657,13.2158,157.3,157.2,18.64964886]
[1751298094860,13.2158,157.3,157.18,26.28432314]
[1751298094861,12.83866377,157.29,157.21,12.83866377]
[1751298095079,12.83866377,157.27,157.2,12.83866377]
[1751298095482,12.83866377,157.31,157.24,12.83866377]
[1751298095777,17.08008597,157.28,157.21,17.08008597]
[1751298095977,17.08008597,157.26,157.16,0.63629422]
[1751298096184,17.08008597,157.21,157.12,18.64964886]
[1751298096387,17.08008597,157.2,157.13,17.08008597]
[1751298096681,6.35647088,157.32,157.19,17.08008597]
[1751298096985,23.43655685,157.32,157.25,17.08008597]
[1751298097161,17.08008597,157.31,157.25,17.08008597]
[1751298097689,35.01613314,157.33,157.27,17.08008597]
[1751298097862,52.09621911,157.33,157.23,18.64964886]
[1751298098187,17.08008597,157.3,157.24,17.08008597]
[1751298098563,17.08008597,157.31,157.25,17.08008597]
[1751298098866,17.08008597,157.29,157.22,17.08008597]
[1751298099294,17.08008597,157.28,157.22,17.08008597]
[1751298099461,54.66,157.3,157.11,15.91198997]
[1751298099673,54.66,157.3,157.14,17.08008597]
[1751298099674,17.08008597,157.21,157.14,17.08008597]
[1751298099969,6.35768326,157.29,157.18,17.08008597]
[1751298100185,17.08008597,157.25,157.18,17.08008597]
[1751298100374,17.08008597,157.24,157.18,17.08008597]
[1751298100555,17.08008597,157.21,157.15,17.08008597]
[1751298100760,31.79105611,157.28,157.04,15.91910982]
[1751298100761,18.933972,157.26,157.04,15.91910982]
[1751298100992,17.08008597,157.17,157.11,17.08008597]
[1751298101169,17.08008597,157.16,157.1,17.08008597]
[1751298101484,17.08008597,157.16,157.07,26.0]
[1751298101676,17.08008597,157.15,157.09,17.08008597]
[1751298101859,17.08008597,157.16,157.06,6.36683158]
[1751298102060,17.08008597,157.17,157.1,17.08008597]
[1751298102261,54.06436838,157.22,157.07,44.64964886]
[1751298102460,17.08008597,157.17,157.06,6.36683158]
[1751298102660,17.08008597,157.15,157.09,17.08008597]
[1751298102957,17.08008597,157.15,157.06,7.00353093]
[1751298103157,17.08008597,157.15,157.09,17.08008597]
[1751298103482,17.08008597,157.13,157.01,25.01866994]
[1751298103660,6.36334712,157.15,157.06,26.0]
[1751298103661,17.08008597,157.14,157.06,26.0]
[1751298103991,45.74008597,157.14,157.08,17.08008597]
[1751298104191,45.74008597,157.14,157.04,0.63678043]
[1751298104192,28.66,157.14,157.1,17.08008597]
[1751298104369,28.66,157.14,157.09,17.08008597]
[1751298104888,17.08008597,157.13,157.07,17.08008597]
[1751298105069,28.66,157.14,157.1,17.08008597]
[1751298105260,17.08008597,157.12,157.06,17.08008597]
[1751298105466,23.44505319,157.11,157.05,17.08008597]
[1751298105666,17.08008597,157.1,157.04,17.08008597]
[1751298106486,6.36496722,157.11,157.06,17.08008597]
[1751298106786,28.66,157.1,157.07,17.08008597]
[1751298106988,28.66,157.1,157.03,18.64964886]
[1751298106989,28.66,157.1,157.06,17.08008597]
[1751298107366,28.66,157.1,157.03,26.0]
[1751298107572,28.66,157.1,157.05,17.08008597]
[1751298107759,28.66,157.1,157.06,17.08008597]
[1751298107963,28.66,157.1,157.08,17.08008597]
[1751298108602,28.66,157.1,157.03,48.92532501]
[1751298108959,28.66,157.1,157.05,17.08008597]
[1751298109164,17.08008597,157.06,156.99,0.2]
[1751298109376,17.08008597,157.05,156.99,17.28008597]
[1751298109578,17.08008597,157.05,156.99,6.56980318]
[1751298109783,6.36741256,157.05,156.99,0.2]
[1751298110004,17.08008597,157.04,156.99,0.2]
[1751298110172,17.08008597,157.03,156.99,0.2]
[1751298110879,17.08008597,157.02,156.99,0.2]
[1751298111079,23.44749853,157.05,156.99,17.28008597]
[1751298111808,17.08008597,157.06,157.0,17.08008597]
[1751298112107,18.75299157,157.07,156.99,0.2]
[1751298112305,18.75299157,157.07,157.0,17.08008597]
[1751298112306,17.08008597,157.06,157.0,17.08008597]
[1751298112497,17.08008597,157.04,156.99,0.2]
[1751298112682,18.75299157,157.07,156.99,0.2]
[1751298112683,17.08008597,157.05,156.99,17.28008597]
[1751298113200,28.66,157.05,156.99,0.2]
[1751298113498,45.74008597,157.06,157.0,17.08008597]
[1751298113712,17.08008597,157.06,157.0,17.08008597]
[1751298113879,28.66,157.05,157.0,17.08008597]
[1751298114070,28.66,157.05,156.99,0.2]
[1751298114071,28.66,157.05,156.99,6.56981137]
[1751298114270,28.66,157.05,157.0,17.08008597]
[1751298114706,28.66,157.05,157.04,17.08008597]
[1751298115581,28.66,157.05,157.04,23.44789035]
[1751298115777,28.66,157.05,157.04,19.1821047]
[1751298115997,6.36506833,157.11,157.02,0.63686154]
[1751298116176,28.66,157.1,157.06,12.81430032]
[1751298116376,28.66,157.1,157.07,12.81430032]
[1751298116576,28.66,157.1,157.06,12.81430032]
[1751298116790,28.66,157.1,157.05,12.81430032]
[1751298116992,28.66,157.1,157.06,12.81430032]
[1751298117206,28.66,157.1,157.05,12.81430032]
[1751298117405,6.36577757,157.09,157.05,12.81430032]
[1751298117784,28.66,157.1,157.06,12.81430032]
[1751298118000,28.66,157.1,157.01,41.92227487]
[1751298118187,28.66,157.1,157.06,12.81430032]
[1751298118804,28.66,157.1,157.01,41.92227487]
[1751298118805,47.83984855,157.1,157.04,12.81430032]
[1751298119304,35.02554823,157.1,157.04,12.81430032]
[1751298119602,35.02554823,157.1,157.05,12.81430032]
[1751298119784,47.83984855,157.1,157.04,12.81430032]
[1751298120180,12.81430032,157.09,157.02,6.36861546]
[1751298120416,12.81430032,157.07,157.01,12.81430032]
[1751298120782,50.93897916,157.1,157.02,12.81430032]
[1751298121081,28.66,157.1,157.08,12.81430032]
[1751298121299,28.66,157.1,157.09,12.81430032]
[1751298121508,35.02537237,157.1,157.04,12.81430032]
[1751298121704,12.81430032,157.08,157.03,0.2]
[1751298121984,35.02537237,157.1,157.03,13.01430032]
[1751298121985,12.81430032,157.09,157.03,13.01430032]
[1751298122184,47.93967269,157.1,157.04,12.81430032]
[1751298122910,28.76,157.1,157.08,12.81430032]
[1751298123085,28.76,157.1,157.04,26.63678043]
[1751298123086,28.76,157.1,157.09,12.81430032]
[1751298123488,28.76,157.1,157.09,45.18007789]
[1751298123694,28.76,157.1,157.09,38.81430032]
[1751298123913,28.76,157.1,157.09,45.18007789]
[1751298124490,28.76,157.1,157.09,38.81430032]
[1751298124794,35.12541662,157.1,157.07,12.81430032]
[1751298124991,35.12541662,157.1,157.06,12.81430032]
[1751298125199,28.76,157.1,157.07,12.81430032]
[1751298125612,28.76,157.1,157.03,6.5680699]
[1751298125613,35.12553571,157.1,157.03,6.5680699]
[1751298125784,35.12553571,157.1,157.05,12.81430032]
[1751298125988,35.12553571,157.1,157.03,0.2]
[1751298125989,28.76,157.1,157.07,12.81430032]
[1751298126188,35.12539523,157.1,157.05,12.81430032]
[1751298126406,47.93969555,157.1,157.03,0.2]
[1751298126608,12.81430032,157.07,157.03,0.2]
[1751298126806,12.81430032,157.08,157.03,0.2]
[1751298127019,12.81430032,157.09,157.03,13.01430032]
[1751298127212,63.85312648,157.1,157.04,12.81430032]
[1751298127713,51.03882616,157.1,157.04,12.81430032]
[1751298127912,51.03882616,157.1,157.05,12.81430032]
[1751298128093,35.12539523,157.1,157.06,12.81430032]
[1751298128288,35.12539523,157.1,157.05,12.81430032]
[1751298128609,35.12539523,157.1,157.03,0.2]
[1751298128610,12.81430032,157.08,157.03,0.2]
[1751298128816,12.81430032,157.07,157.03,0.2]
[1751298128992,12.81430032,157.08,157.03,0.2]
[1751298129386,12.81430032,157.07,157.03,0.2]
[1751298129588,6.3669935,157.06,157.03,0.2]
[1751298130419,60.58686187,157.1,157.07,26.28432314]
[1751298130420,28.76,157.1,157.07,26.28432314]
[1751298130599,28.76,157.1,157.09,57.74827232]
[1751298131795,28.76,157.1,157.09,64.75062764]
[1751298132502,28.76,157.1,157.09,45.18007789]
[1751298132908,28.76,157.1,157.09,38.81430032]
[1751298133103,28.76,157.1,157.09,45.18007789]
[1751298133415,28.76,157.1,157.04,7.00427559]
[1751298133723,35.12541653,157.1,157.03,0.2]
[1751298133897,12.81430032,157.08,157.03,0.2]
[1751298134224,12.81430032,157.05,157.03,0.2]
[1751298134922,12.81430032,157.04,157.03,0.2]
[1751298135213,12.81430032,157.05,157.03,0.2]
[1751298135415,114.6925712,157.1,157.03,13.01430032]
[1751298135416,35.12541653,157.1,157.03,13.01430032]
[1751298135606,47.93971685,157.1,157.04,12.81430032]
[1751298135919,51.03884746,157.1,157.04,12.81430032]
[1751298136102,28.76,157.1,157.08,12.81430032]
[1751298136503,0.1,157.1,157.09,12.81430032]
[1751298136998,0.1,157.1,157.09,39.45087807]
[1751298137194,0.1,157.1,157.09,12.81430032]
[1751298138325,0.1,157.1,157.09,31.74827232]
[1751298138521,0.1,157.1,157.09,32.38485007]
[1751298139406,28.66,157.13,157.1,18.933972]
[1751298139611,28.66,157.13,157.12,57.74827232]
[1751298139827,28.66,157.13,157.12,64.11283443]
[1751298140601,35.01849176,157.27,157.17,18.64964886]
[1751298140919,35.01849176,157.27,157.15,12.81430032]
[1751298140920,12.81430032,157.21,157.15,12.81430032]
[1751298141135,12.81430032,157.21,157.06,31.83430223]
[1751298141136,12.81430032,157.17,157.04,6.36780438]
[1751298141307,12.81430032,157.16,157.1,12.81430032]
[1751298141506,12.81430032,157.15,157.04,6.36780438]
[1751298141703,6.36294222,157.16,157.11,12.81430032]
[1751298142124,35.0845981,157.16,157.1,12.81430032]
[1751298142322,10.0,157.26,157.14,12.81430032]
[1751298142323,12.81430032,157.2,157.14,12.81430032]
[1751298142515,12.81430032,157.19,157.13,12.81430032]
[1751298142916,28.71508584,157.23,157.17,12.81430032]
[1751298143527,28.71508584,157.23,157.12,26.0]
[1751298143528,12.81430032,157.18,157.12,12.81430032]
[1751298143719,12.81430032,157.18,157.1,26.0]
[1751298143720,15.90078552,157.23,157.15,12.81430032]
[1751298143925,6.35930047,157.25,157.18,12.81430032]
[1751298143926,12.81430032,157.24,157.18,12.81430032]
[1751298144110,19.17360079,157.25,157.2,12.81430032]
[1751298144309,22.25755166,157.25,157.2,12.81430032]
[1751298144511,35.07185198,157.25,157.19,12.81430032]
[1751298145032,22.25755166,157.25,157.15,0.28432314]
[1751298145335,12.81430032,157.23,157.17,12.81430032]
[1751298145638,28.66,157.22,157.03,0.2]
[1751298145826,28.66,157.22,157.14,12.81430032]
[1751298145827,22.2632148,157.21,157.14,12.81430032]
[1751298146020,12.81430032,157.2,157.14,12.81430032]
[1751298146221,12.81430032,157.19,157.14,12.81430032]
[1751298146443,12.81430032,157.2,157.14,12.81430032]
[1751298146613,12.81430032,157.19,157.13,12.81430032]
[1751298146804,12.81430032,157.18,157.12,12.81430032]
[1751298147107,12.81430032,157.14,157.03,0.2]
[1751298147307,12.81430032,157.15,157.09,12.81430032]
[1751298147506,12.81430032,157.11,157.03,0.2]
[1751298147708,35.09452183,157.09,157.04,12.81430032]
[1751298147922,35.09452183,157.09,157.03,0.2]
[1751298147923,12.81430032,157.08,157.03,0.2]
[1751298148135,12.81430032,157.07,157.03,0.2]
[1751298148336,20.47960443,157.24,157.06,44.71860064]
[1751298148630,6.36010939,157.23,157.18,12.81430032]
[1751298148939,6.35768326,157.29,157.22,12.81430032]
[1751298149105,19.17198358,157.29,157.22,12.81430032]
[1751298149306,12.81430032,157.27,157.21,12.81430032]
[1751298149513,54.04106771,157.29,157.19,13.4504731]
[1751298149821,6.35930047,157.25,157.2,12.81430032]
[1751298150011,22.25755166,157.25,157.2,12.81430032]
[1751298150908,6.35930047,157.25,157.21,12.81430032]
[1751298151319,12.81430032,157.27,157.18,0.63621325]
[1751298151320,6.35849176,157.27,157.24,12.81430032]
[1751298151843,28.80768829,157.3,157.25,17.07812459]
[1751298151844,0.1,157.3,157.25,17.07812459]
[1751298152144,6.45728049,157.3,157.26,17.07812459]
[1751298152728,0.1,157.3,157.26,17.07812459]
[1751298152920,6.45737328,157.3,157.27,17.07812459]
[1751298153446,6.45737328,157.3,157.26,17.07812459]
[1751298153745,6.45738953,157.3,157.26,17.07812459]
[1751298154119,6.45738953,157.3,157.25,17.07812459]
[1751298154350,6.45738953,157.3,157.26,17.07812459]
[1751298156146,0.1,157.3,157.27,17.07812459]
[1751298156716,6.45730459,157.3,157.27,17.07812459]
[1751298157117,0.1,157.3,157.27,17.07812459]
[1751298157424,0.1,157.3,157.24,6.99546098]
[1751298157425,6.45738069,157.3,157.26,17.07812459]
[1751298157617,6.45738069,157.3,157.25,17.07812459]
[1751298157816,0.1,157.3,157.26,17.07812459]
[1751298158065,6.45738733,157.3,157.27,17.07812459]
[1751298158242,6.45738733,157.3,157.24,0.63597049]
[1751298158546,0.1,157.3,157.27,26.0]
[1751298158741,0.1,157.3,157.28,17.07812459]
[1751298158927,0.1,157.3,157.26,17.07812459]
[1751298159129,23.53558083,157.3,157.24,17.07812459]
[1751298159530,6.45745624,157.3,157.24,26.0]
[1751298159728,0.1,157.3,157.29,18.64964886]
[1751298159950,0.1,157.3,157.28,17.07812459]
[1751298160113,0.1,157.3,157.21,18.64964886]
[1751298160319,17.07812459,157.29,157.23,17.07812459]
[1751298160520,17.07812459,157.29,157.21,18.64964886]
[1751298160521,23.53562174,157.3,157.24,17.07812459]
[1751298160847,0.1,157.3,157.25,17.07812459]
[1751298161046,0.1,157.3,157.26,17.07812459]
[1751298161227,0.1,157.3,157.24,26.63597049]
[1751298161424,0.1,157.3,157.26,17.07812459]
[1751298161651,6.35719755,157.31,157.26,17.07812459]
[1751298161826,6.35719755,157.31,157.27,17.07812459]
[1751298162015,6.35656831,157.32,157.27,17.07812459]
[1751298162419,6.35656831,157.32,157.25,6.35930047]
[1751298162844,6.35656831,157.32,157.26,17.07812459]
[1751298163049,6.35656831,157.32,157.25,6.35930047]
[1751298163050,6.35656831,157.32,157.27,17.07812459]
[1751298163552,23.43378748,157.34,157.28,17.07812459]
[1751298163928,23.43378748,157.34,157.27,17.07812459]
[1751298164121,22.24482012,157.34,157.14,22.34341634]
[1751298164346,17.07812459,157.32,157.26,17.07812459]
[1751298164539,6.35566289,157.34,157.29,17.07812459]
[1751298164949,6.35345501,157.4,157.33,35.72777345]
[1751298165151,17.07812459,157.38,157.33,17.07812459]
[1751298165323,22.23655539,157.4,157.32,43.07812459]
[1751298165524,6.35345501,157.4,157.33,17.07812459]
[1751298165735,33.07208425,157.49,157.36,26.0]
[1751298165940,1.3237961,157.49,157.47,6.35041595]
[1751298166226,1.3237961,157.49,157.48,17.07812459]
[1751298166649,1.3237961,157.49,157.48,17.997449]
[1751298166955,1.3237961,157.49,157.48,62.64709786]
[1751298167258,0.3775747,157.54,157.52,26.0]
[1751298167422,0.3775747,157.54,157.53,17.71292431]
[1751298167622,0.3775747,157.54,157.53,17.07812459]
[1751298167827,0.3775747,157.54,157.53,36.01209659]
[1751298168026,0.3775747,157.54,157.53,42.36009379]
[1751298168270,0.3775747,157.54,157.53,17.07812459]
[1751298168427,0.3775747,157.54,157.5,0.28432314]
[1751298168428,6.72547145,157.54,157.47,0.63504159]
[1751298168736,6.72547145,157.54,157.47,17.07812459]
[1751298168927,6.72547145,157.54,157.49,17.07812459]
[1751298169264,17.07812459,157.53,157.47,17.07812459]
[1751298169552,17.07812459,157.48,157.42,17.07812459]
[1751298169724,17.07812459,157.47,157.41,17.07812459]
[1751298169925,17.07812459,157.47,157.35,6.99078486]
[1751298169926,23.43015406,157.43,157.35,0.63552589]
[1751298170151,6.35202947,157.43,157.33,17.07812459]
[1751298170371,17.07812459,157.39,157.33,17.07812459]
[1751298170531,22.23210315,157.43,157.36,17.07812459]
[1751298170727,39.31022774,157.43,157.38,17.07812459]
[1751298171036,6.35202947,157.43,157.35,0.63552589]
[1751298171353,6.35202947,157.43,157.32,0.63564708]
[1751298171653,17.07812459,157.51,157.33,59.30964886]
[1751298171826,6.3479972,157.53,157.43,17.07812459]
[1751298171827,22.21799021,157.53,157.43,17.07812459]
[1751298172028,17.07812459,157.52,157.46,17.07812459]
[1751298172948,39.2961148,157.53,157.43,0.63520294]
[1751298173151,39.29893596,157.51,157.45,17.07812459]
[1751298173360,17.07812459,157.5,157.44,17.07812459]
[1751298173528,6.34880325,157.51,157.47,17.07812459]
[1751298173727,6.34880325,157.51,157.46,17.07812459]
[1751298174154,6.34880325,157.51,157.42,0.63524329]
[1751298174155,39.29893596,157.51,157.45,17.07812459]
[1751298174337,17.07812459,157.5,157.44,17.07812459]
[1751298174546,17.07812459,157.49,157.43,17.07812459]
[1751298174850,17.07812459,157.47,157.35,18.64964886]
[1751298175048,17.07812459,157.45,157.39,17.07812459]
[1751298175247,17.07812459,157.45,157.31,6.379]
[1751298175248,23.43015406,157.43,157.37,17.07812459]
[1751298175756,34.9996647,157.43,157.37,12.76756155]
[1751298175957,22.23210315,157.43,157.29,6.9931208]
[1751298176257,22.23210315,157.43,157.39,12.76756155]
[1751298176440,22.23210315,157.43,157.36,12.76756155]
[1751298176632,22.23210315,157.43,157.35,12.76756155]
[1751298176969,12.76756155,157.37,157.27,0.83584917]
[1751298177132,0.14216157,157.42,157.27,0.2]
[1751298177133,6.35566289,157.34,157.27,0.2]
[1751298177463,6.35566289,157.34,157.3,12.76756155]
[1751298177770,28.6,157.39,157.27,0.2]
[1751298177771,6.35404752,157.38,157.33,17.06012219]
[1751298177939,6.35404752,157.38,157.34,0.63556628]
[1751298178259,6.35404752,157.38,157.37,17.06012219]
[1751298178462,17.06012219,157.47,157.38,17.06012219]
[1751298178662,17.06012219,157.46,157.4,17.06012219]
[1751298178834,17.06012219,157.48,157.42,17.06012219]
[1751298179249,17.06012219,157.47,157.41,17.06012219]
[1751298179457,86.3432412,157.52,157.39,17.06012219]
[1751298179458,17.06012219,157.45,157.39,17.06012219]
[1751298179754,22.22786738,157.46,157.4,17.06012219]
[1751298179957,39.28798957,157.46,157.4,17.06012219]
[1751298180159,17.06012219,157.44,157.35,0.63552589]
[1751298180461,0.28432314,157.45,157.39,17.06012219]
[1751298180462,17.06012219,157.45,157.39,17.06012219]
[1751298180664,71.04208584,157.46,157.4,17.06012219]
[1751298180866,53.98196365,157.46,157.41,17.06012219]
[1751298181238,71.04208584,157.46,157.33,0.63560668]
[1751298181434,53.98196365,157.46,157.41,17.06012219]
[1751298181639,53.98196365,157.46,157.42,17.06012219]
[1751298181852,53.98196365,157.46,157.41,17.06012219]
[1751298182058,22.22786738,157.46,157.42,17.06012219]
[1751298182445,22.22786738,157.46,157.35,0.63552589]
[1751298182651,17.06012219,157.37,157.31,17.06012219]
[1751298182851,17.06012219,157.32,157.24,17.06012219]
[1751298183148,14.0318,157.39,157.17,0.63625373]
[1751298183149,28.6,157.33,157.31,17.06012219]
[1751298183469,28.6,157.33,157.32,35.70977105]
[1751298183780,67.9065338,157.33,157.14,13.2351]
[1751298183950,0.28432314,157.31,157.19,17.06012219]
[1751298184135,13.2197,157.32,157.13,0.2]
[1751298184349,17.06012219,157.28,157.22,17.06012219]
[1751298184539,17.34444533,157.28,157.19,17.06012219]
[1751298184762,17.06012219,157.28,157.21,17.06012219]
[1751298184939,17.06012219,157.29,157.22,17.06012219]
[1751298185155,17.34444533,157.28,157.15,0.63633471]
[1751298185382,17.34444533,157.28,157.13,0.2]
[1751298185383,18.933972,157.27,157.13,0.2]
[1751298185555,17.06012219,157.18,157.13,0.2]
[1751298185753,54.04374362,157.28,157.13,0.2]
[1751298186065,17.06012219,157.14,157.13,0.2]
[1751298186452,17.34444533,157.14,157.13,0.2]
[1751298186646,28.62,157.15,157.13,0.2]
[1751298186855,17.06012219,157.14,157.13,0.2]
[1751298187057,28.62,157.15,157.13,0.2]
[1751298187268,17.06012219,157.14,157.13,0.2]
[1751298187456,28.62,157.15,157.13,17.26012219]
[1751298187659,28.62,157.15,157.13,0.2]
[1751298187862,28.62,157.15,157.06,18.84964886]
[1751298187863,12.0009,157.13,157.06,0.2]
[1751298188104,17.06012219,157.09,157.06,0.2]
[1751298188379,17.06012219,157.1,157.06,0.2]
[1751298188766,12.0009,157.13,157.06,17.26012219]
[1751298188963,17.06012219,157.11,157.06,0.2]
[1751298189284,17.06012219,157.12,157.06,17.26012219]
[1751298189448,23.42472906,157.12,157.06,0.2]
[1751298189770,17.06012219,157.14,157.08,17.06012219]
[1751298189980,17.06012219,157.14,157.06,0.2]
[1751298189981,28.62,157.15,157.1,17.06012219]
[1751298190348,52.04361933,157.15,157.06,6.56694403]
[1751298190546,16.0,157.14,157.1,17.06012219]
[1751298190767,28.62,157.15,157.11,0.63649672]
[1751298190968,28.62,157.15,157.14,17.06012219]
[1751298192268,17.06012219,157.21,157.14,17.06012219]
[1751298192451,16.0,157.2,157.18,17.06012219]
[1751298192651,16.0,157.2,157.15,17.06012219]
[1751298192850,16.0,157.2,157.16,17.06012219]
[1751298193050,16.0,157.2,157.12,6.36456211]
[1751298193353,16.0,157.2,157.17,17.06012219]
[1751298193685,16.0,157.19,157.16,17.06012219]
[1751298193857,16.0,157.19,157.17,17.06012219]
[1751298194180,16.0,157.19,157.13,26.0]
[1751298194348,16.0,157.19,157.16,17.06012219]
[1751298195090,16.0,157.19,157.16,6.36290313]
[1751298195283,16.0,157.19,157.15,32.36331766]
[1751298195483,28.64,157.24,157.18,43.06012219]
[1751298195651,28.64,157.24,157.16,19.28594308]
[1751298195652,28.64,157.24,157.23,17.06012219]
[1751298195854,28.64,157.24,157.23,35.70977105]
[1751298196056,21.67791854,157.24,157.23,35.70977105]
[1751298196779,21.67791854,157.24,157.23,45.26459465]
[1751298196981,16.0,157.35,157.27,44.64964886]
[1751298197155,16.0,157.35,157.34,17.06012219]
[1751298197357,16.0,157.35,157.3,26.6357279]
[1751298197560,16.0,157.35,157.34,17.06012219]
[1751298197793,16.0,157.35,157.34,35.70977105]